bitfinex-derivatives/quotes_SOLF0:USTF0_20241226
["timestamp","ask_amount","ask_price","bid_price","bid_amount"]
[1735238778467,2.6468,189.09,189.06,3.22]
[1735238779462,2.6468,189.09,189.06,5.8671]
[1735238779668,2.6468,189.09,189.06,3.22]
[1735238780166,12.89006206,189.18,189.06,3.22]
[1735238780364,2.6465,189.11,189.06,13.01706206]
[1735238780571,12.89006206,189.18,189.06,13.01706206]
[1735238780762,12.89006206,189.18,189.07,2.6468]
[1735238780968,2.6459,189.15,189.07,2.6468]
[1735238781170,12.89006206,189.18,189.07,2.6468]
[1735238782764,12.89006206,189.18,189.06,13.01706206]
[1735238782964,9.79706206,189.15,189.07,3.22]
[1735238783165,9.79706206,189.15,189.01,1.5298]
[1735238783371,9.79706206,189.15,189.02,3.22]
[1735238783570,9.79706206,189.15,189.03,2.6475]
[1735238784175,2.647,189.07,189.01,1.5298]
[1735238784373,2.647,189.07,189.02,5.8677]
[1735238784675,9.79706206,189.15,189.02,3.22]
[1735238784976,9.79706206,189.15,189.04,2.6474]
[1735238785875,2.6468,189.09,189.04,2.6474]
[1735238786075,9.79706206,189.15,189.04,2.6474]
[1735238786477,2.6468,189.09,189.04,2.6474]
[1735238787076,9.79706206,189.15,189.02,3.22]
[1735238787374,9.79706206,189.12,189.03,3.22]
[1735238787575,3.2308,189.11,189.03,3.22]
[1735238787974,1.6047,189.1,189.03,3.22]
[1735238788375,9.79706206,189.09,188.99,55.06]
[1735238788775,9.79706206,189.06,189.0,3.22]
[1735238788974,2.6478,189.01,189.0,3.22]
[1735238789380,9.79706206,189.06,188.98,3.22]
[1735238789580,2.6483,188.98,188.92,4.1684]
[1735238789781,2.6483,188.98,188.93,3.22]
[1735238789983,2.6483,188.98,188.93,5.8689]
[1735238791085,2.6484,188.97,188.93,5.8689]
[1735238793289,9.79706206,189.03,188.91,9.79706206]
[1735238793486,4.9155,189.02,188.94,3.22]
[1735238793892,2.6487,188.95,188.94,3.22]
[1735238794790,2.6487,188.95,188.91,12.44616206]
[1735238795088,2.6487,188.95,188.92,3.22]
[1735238795592,2.6484,188.98,188.94,2.6488]
[1735238796388,2.6484,188.97,188.94,2.6488]
[1735238797692,2.6487,188.95,188.92,3.22]
[1735238798494,4.9155,189.02,188.92,3.22]
[1735238799087,9.79706206,189.06,188.94,9.79706206]
[1735238799293,36.78967589,189.09,188.94,9.79706206]
[1735238799493,36.78967589,189.09,188.98,2.6482]
[1735238799683,36.78967589,189.09,188.99,3.22]
[1735238799889,14.75436206,189.09,188.99,3.22]
[1735238800688,2.6476,189.03,188.99,3.22]
[1735238803400,14.75436206,189.09,188.99,3.22]
[1735238803795,2.6471,189.06,188.99,3.22]
[1735238804000,14.75436206,189.09,188.99,3.22]
[1735238804301,7.6041,189.09,188.99,13.01706206]
[1735238804495,1.599,189.09,188.99,13.01706206]
[1735238804999,12.91596206,189.15,188.99,13.01706206]
[1735238805300,1.65,189.14,188.99,13.01706206]
[1735238805503,2.6466,189.1,189.05,2.6472]
[1735238805701,1.65,189.14,189.06,3.22]
[1735238806002,1.65,189.14,188.99,9.79706206]
[1735238806003,2.6462,189.13,189.08,2.6468]
[1735238806200,1.65,189.14,189.09,3.22]
[1735238806400,1.65,189.14,189.1,3.22]
[1735238806595,1.65,189.14,189.02,9.79706206]
[1735238806596,1.65,189.14,189.11,3.22]
[1735238806798,2.6461,189.13,189.11,3.22]
[1735238807504,4.296,189.14,189.11,3.22]
[1735238808305,2.646,189.14,189.11,3.22]
[1735238808998,2.6462,189.13,189.11,3.22]
[1735238809704,9.79706206,189.18,189.11,3.22]
[1735238809905,2.6462,189.13,189.11,3.22]
[1735238810204,9.79706206,189.18,189.11,3.22]
[1735238810904,9.79706206,189.18,189.03,3.0927]
[1735238810905,9.79706206,189.18,189.1,3.22]
[1735238811101,9.79706206,189.18,189.11,3.22]
[1735238811306,2.6461,189.14,189.11,3.22]
[1735238812496,2.6462,189.13,189.11,3.22]
[1735238812701,9.79706206,189.18,189.11,3.22]
[1735238813102,2.6457,189.16,189.11,3.22]
[1735238813401,9.79706206,189.21,189.11,3.22]
[1735238814402,2.6454,189.18,189.11,3.22]
[1735238814604,9.79706206,189.21,189.11,3.22]
[1735238815107,2.6458,189.16,189.11,3.22]
[1735238816307,2.6459,189.15,189.11,3.22]
[1735238816508,2.6459,189.15,189.11,5.8664]
[1735238817612,2.6457,189.17,189.11,3.22]
[1735238817807,2.6457,189.17,189.13,2.6461]
[1735238818411,2.6457,189.16,189.12,2.6462]
[1735238819804,2.6456,189.17,189.13,2.6461]
[1735238820007,4.7852,189.22,189.13,2.6461]
[1735238820605,9.79706206,189.21,189.11,3.22]
[1735238820806,9.79706206,189.18,189.1,3.2]
[1735238821017,2.6465,189.11,189.1,3.2]
[1735238821316,9.79706206,189.18,189.1,3.2]
[1735238821611,2.6464,189.11,189.1,3.2]
[1735238822413,2.6463,189.12,189.1,3.2]
[1735238822812,9.79706206,189.18,189.1,3.2]
[1735238823018,2.6464,189.11,189.1,3.2]
[1735238823317,9.79706206,189.18,189.09,3.2]
[1735238823611,2.6466,189.1,189.09,3.2]
[1735238823811,9.79706206,189.15,189.03,58.1327]
[1735238824009,2.6472,189.06,189.04,3.2]
[1735238824410,9.79706206,189.12,189.04,3.2]
[1735238826411,9.79706206,189.12,189.05,3.2]
[1735238827313,2.6474,189.04,189.03,55.04]
[1735238827510,2.6474,189.04,189.03,58.24]
[1735238827812,9.79706206,189.12,189.03,58.24]
[1735238828414,2.6472,189.06,189.03,58.24]
[1735238828614,9.79706206,189.12,189.03,58.24]
[1735238828815,2.6474,189.05,189.03,58.24]
[1735238829218,9.79706206,189.12,189.03,58.24]
[1735238829420,2.6471,189.07,189.03,58.24]
[1735238829817,4.661,189.14,189.03,58.24]
[1735238830013,4.661,189.14,189.05,2.6472]
[1735238830219,4.661,189.14,189.03,58.24]
[1735238830417,4.661,189.14,189.03,59.9108]
[1735238831020,2.6465,189.11,189.06,2.647]
[1735238831422,4.661,189.14,189.03,61.4887]
[1735238831718,2.6467,189.1,189.05,2.6472]
[1735238832520,2.6467,189.09,189.05,2.6472]
[1735238833220,2.6467,189.09,189.06,2.6471]
[1735238833422,2.6467,189.09,189.03,61.4887]
[1735238833819,9.79706206,189.12,189.04,3.22]
[1735238834319,9.79706206,189.13,189.04,3.22]
[1735238835521,2.6474,189.04,189.03,55.04]
[1735238835723,2.6474,189.04,189.03,58.24]
[1735238836218,9.79706206,189.07,188.93,71.77160825]
[1735238836418,4.7249,189.06,188.96,3.2]
[1735238837020,9.79706206,189.04,188.96,3.2]
[1735238837422,2.6477,189.02,188.96,3.2]
[1735238837629,9.79706206,189.04,188.96,3.2]
[1735238838124,2.6477,189.02,188.96,3.2]
[1735238838324,9.79706206,189.04,188.96,3.2]
[1735238839020,2.648,189.01,188.96,3.2]
[1735238839223,9.79706206,189.04,188.96,2.6485]
[1735238839528,2.6484,188.97,188.96,3.2]
[1735238839719,9.79706206,189.04,188.95,3.2]
[1735238840026,2.6485,188.97,188.95,3.2]
[1735238840521,2.6485,188.96,188.95,3.2]
[1735238843928,2.6478,189.02,188.95,3.2]
[1735238844128,9.79706206,189.04,188.95,3.2]
[1735238844431,2.6485,188.96,188.95,3.2]
[1735238845426,2.6485,188.96,188.94,3.22]
[1735238845929,2.6487,188.95,188.94,3.22]
[1735238846431,9.79706206,189.01,188.94,3.22]
[1735238846622,2.6486,188.96,188.94,3.22]
[1735238847522,4.7249,189.06,188.94,3.22]
[1735238848122,2.6479,189.01,188.96,8.91064409]
[1735238848323,2.6479,189.01,188.94,3.22]
[1735238848324,6.26224409,189.04,188.98,6.26224409]
[1735238848526,6.26224409,189.04,188.99,3.22]
[1735238849734,2.648,189.0,188.99,3.22]
[1735238852738,2.6488,188.94,188.93,3.22]
[1735238853033,9.78493551,188.98,188.92,3.22]
[1735238853237,1.5964,188.97,188.91,3.22]
[1735238853439,2.6491,188.92,188.87,4.2403]
[1735238853737,9.78493551,188.95,188.81,70.0009595]
[1735238853935,9.78493551,188.95,188.83,3.22]
[1735238854439,9.78493551,188.95,188.84,3.22]
[1735238854638,9.78493551,188.92,188.84,3.22]
[1735238855539,9.78493551,188.92,188.83,3.22]
[1735238855931,9.78493551,188.89,188.79,55.06]
[1735238856136,1.5398,188.88,188.79,55.06]
[1735238856336,9.78493551,188.86,188.8,3.22]
[1735238856537,2.6506,188.82,188.8,3.22]
[1735238856738,1.5398,188.88,188.8,3.22]
[1735238857238,2.6501,188.86,188.8,5.8707]
[1735238857441,9.78493551,188.92,188.8,3.22]
[1735238857639,9.78493551,188.92,188.81,1.6432]
[1735238858539,2.6497,188.88,188.81,1.6432]
[1735238859143,2.6497,188.88,188.82,2.6505]
[1735238860035,9.78493551,188.92,188.82,2.6505]
[1735238860241,9.78493551,188.92,188.81,4.2937]
[1735238860646,2.6499,188.87,188.81,1.6432]
[1735238860848,2.6499,188.87,188.82,2.6504]
[1735238863542,9.78493551,188.92,188.81,1.6432]
[1735238863738,2.6496,188.89,188.84,2.6502]
[1735238863942,9.78493551,188.92,188.85,3.22]
[1735238864441,9.78493551,188.92,188.85,5.87]
[1735238864646,1.5398,188.94,188.85,3.22]
[1735238866447,1.5398,188.94,188.85,13.00493551]
[1735238866643,3.1227,188.97,188.85,13.00493551]
[1735238866849,1.533,188.97,188.85,13.00493551]
[1735238867953,2.6487,188.95,188.91,2.6492]
[1735238868152,2.6487,188.95,188.92,3.22]
[1735238868353,2.6485,188.96,188.92,5.8691]
[1735238868557,11.47133551,189.01,188.92,3.22]
[1735238869256,2.6483,188.98,188.93,2.6488]
[1735238869448,2.6483,188.98,188.92,3.22]
[1735238869650,11.47133551,189.01,188.92,3.22]
[1735238870249,11.47133551,189.01,188.92,5.869]
[1735238870458,11.47133551,189.01,188.92,3.22]
[1735238870859,2.6484,188.98,188.93,2.6488]
[1735238871156,2.6484,188.98,188.92,3.22]
[1735238871352,11.47133551,189.01,188.92,3.22]
[1735238871555,1.6864,189.01,188.92,3.22]
[1735238872559,2.648,189.0,188.95,2.6486]
[1735238875653,2.648,189.01,188.96,2.6484]
[1735238875859,2.648,189.01,188.97,3.22]
[1735238876959,2.6477,189.02,188.97,5.8684]
[1735238878256,2.6475,189.04,188.97,3.22]
[1735238878456,11.37563551,189.07,188.97,3.22]
[1735238878656,9.78493551,189.1,188.98,1.6351]
[1735238878857,2.6472,189.06,189.01,2.6477]
[1735238879059,2.6472,189.06,189.02,3.22]
[1735238879254,9.78493551,189.1,189.02,3.22]
[1735238879962,2.6475,189.03,189.02,3.22]
[1735238881961,9.78493551,189.07,188.94,9.78493551]
[1735238882161,2.6478,189.02,188.97,2.6484]
[1735238882465,9.78493551,189.07,188.94,9.78493551]
[1735238882652,9.78493551,189.07,188.95,5.8685]
[1735238883164,2.6481,189.0,188.95,5.8685]
[1735238883361,9.78493551,189.07,188.95,5.8685]
[1735238884259,9.78493551,189.07,188.95,3.22]
[1735238884467,2.648,189.0,188.95,5.8686]
[1735238886163,2.6481,188.99,188.95,5.8686]
[1735238887163,9.78493551,189.04,188.95,3.22]
[1735238887359,9.78493551,189.01,188.9,3.2734]
[1735238887564,9.78493551,189.01,188.91,3.22]
[1735238887756,1.6705,189.0,188.91,3.22]
[1735238887954,9.78493551,188.98,188.91,3.22]
[1735238888158,2.6491,188.93,188.92,3.22]
[1735238888458,9.78493551,188.98,188.92,3.22]
[1735238888665,2.6487,188.95,188.92,3.22]
[1735238888964,1.6705,189.0,188.92,3.22]
[1735238890162,2.6486,188.96,188.92,3.22]
[1735238890365,1.6705,189.0,188.92,3.22]
[1735238892262,2.6486,188.96,188.92,3.22]
[1735238893764,1.6705,189.0,188.92,3.22]
[1735238893966,2.6488,188.95,188.92,3.22]
[1735238896263,6.26590162,189.01,188.93,6.26590162]
[1735238896661,2.6484,188.97,188.93,8.91480162]
[1735238896964,6.26590162,189.01,188.93,8.91480162]
[1735238897165,7.79080162,189.03,188.95,6.26590162]
[1735238897762,2.6481,189.0,188.95,8.91450162]
[1735238898256,2.6481,188.99,188.95,8.91450162]
[1735238898667,7.79080162,189.03,188.95,8.91450162]
[1735238899164,2.6481,189.0,188.95,8.91450162]
[1735238901462,6.26590162,189.0,188.9,1.6351]
[1735238901662,6.26590162,188.97,188.91,3.2]
[1735238902269,9.79070096,189.01,188.91,3.2]
[1735238902964,1.5249,189.03,188.91,3.2]
[1735238903364,1.5249,189.03,188.94,2.6488]
[1735238903770,2.6482,188.99,188.94,2.6488]
[1735238904066,2.6482,188.99,188.91,3.2]
[1735238904267,2.6482,188.99,188.95,2.6486]
[1735238904467,2.6482,188.99,188.96,3.2]
[1735238905371,1.5249,189.03,188.96,3.2]
[1735238905372,2.6484,188.97,188.96,3.2]
[1735238906670,1.5249,189.03,188.96,3.2]
[1735238907271,2.6478,189.01,188.96,5.8484]
[1735238907870,1.5249,189.03,188.96,5.8484]
[1735238908070,2.648,189.0,188.96,5.8484]
[1735238908477,11.38480096,189.07,188.97,2.6484]
[1735238908774,2.6479,189.01,188.97,2.6484]
[1735238909169,2.648,189.0,188.97,2.6484]
[1735238909665,2.648,189.0,188.96,3.2]
[1735238909876,2.648,189.0,188.96,5.8485]
[1735238910173,2.6482,188.99,188.96,5.8485]
[1735238911071,2.6484,188.98,188.96,3.2]
[1735238911273,11.38480096,189.07,188.96,3.2]
[1735238911677,2.6484,188.98,188.96,3.2]
[1735238914480,11.38480096,189.07,188.96,3.2]
[1735238914679,1.5941,189.07,188.96,3.2]
[1735238916177,9.79070096,189.05,188.96,3.2]
[1735238916377,9.79070096,189.05,188.94,1.6628]
[1735238916582,9.79070096,189.05,188.95,3.2]
[1735238917580,2.6482,188.99,188.95,5.8486]
[1735238917780,9.79070096,189.05,188.95,5.8486]
[1735238917974,9.79070096,189.05,188.95,3.2]
[1735238918179,2.6478,189.02,188.95,3.2]
[1735238918380,1.5941,189.07,188.95,3.2]
[1735238918576,11.45210096,189.08,188.95,4.8849]
[1735238919485,2.6476,189.03,188.95,4.8849]
[1735238919881,2.6476,189.03,188.99,2.6481]
[1735238920076,2.6476,189.03,189.0,3.2]
[1735238922077,1.6633,189.1,189.0,3.2]
[1735238922588,2.647,189.07,189.02,2.6476]
[1735238922884,1.563,189.13,189.0,3.2]
[1735238923078,1.563,189.13,189.01,1.6608]
[1735238923277,2.6467,189.09,189.05,2.6473]
[1735238923585,2.6467,189.09,189.01,1.6608]
[1735238923586,2.6467,189.09,189.06,3.2]
[1735238927188,1.5747,189.15,189.07,2.647]
[1735238927387,1.5747,189.15,189.06,3.2]
[1735238927784,9.79070096,189.17,189.06,3.2]
[1735238927980,9.79070096,189.17,189.07,1.6437]
[1735238928685,2.6461,189.14,189.09,2.6466]
[1735238928886,9.79070096,189.17,189.07,1.6437]
[1735238929194,2.6461,189.14,189.08,2.6467]
[1735238929789,9.79070096,189.17,189.08,2.6467]
[1735238929989,2.6462,189.13,189.08,2.6467]
[1735238930689,9.79070096,189.17,189.07,1.6437]
[1735238930894,2.646,189.14,189.1,2.6465]
[1735238931088,2.646,189.14,189.11,3.2]
[1735238931290,2.6461,189.13,189.11,3.2]
[1735238931489,1.5298,189.18,189.11,3.2]
[1735238931687,11.36990096,189.2,189.11,3.2]
[1735238931884,11.36990096,189.2,189.11,5.8464]
[1735238932088,1.5792,189.2,189.11,3.2]
[1735238932585,1.5792,189.2,189.11,5.8464]
[1735238933184,1.5792,189.2,189.11,3.2]
[1735238933989,1.5792,189.2,189.14,2.646]
[1735238934183,1.5792,189.2,189.11,3.2]
[1735238934388,2.6456,189.18,189.11,3.2]
[1735238934592,2.6456,189.18,189.14,2.646]
[1735238935495,1.5792,189.2,189.11,3.2]
[1735238935692,2.6453,189.19,189.15,2.6459]
[1735238935893,2.6453,189.19,189.16,3.2]
[1735238936290,2.6455,189.18,189.16,3.2]
[1735238937492,6.25073182,189.21,189.16,3.2]
[1735238937697,2.6453,189.19,189.16,3.2]
[1735238938796,2.6454,189.18,189.16,3.2]
[1735238940297,2.6456,189.17,189.16,3.2]
[1735238941301,1.6698,189.23,189.16,3.2]
[1735238941500,6.25073182,189.22,189.16,3.2]
[1735238941702,6.25073182,189.18,189.09,2.6466]
[1735238941897,2.6463,189.13,189.1,3.2]
[1735238942597,6.25073182,189.2,189.11,6.25073182]
[1735238942799,1.6698,189.23,189.15,6.25073182]
[1735238942999,2.6451,189.21,189.16,3.2]
[1735238943300,6.25073182,189.22,189.16,3.2]
[1735238944002,6.25073182,189.24,189.17,2.6455]
[1735238944399,6.25073182,189.24,189.16,3.2]
[1735238944400,2.6449,189.22,189.16,3.2]
[1735238944600,2.6449,189.22,189.17,6.25073182]
[1735238944901,6.25073182,189.26,189.2,2.6452]
[1735238945098,6.25073182,189.26,189.21,3.2]
[1735238945999,2.6446,189.24,189.21,3.2]
[1735238946201,6.25073182,189.24,189.21,3.2]
[1735238946705,2.6445,189.25,189.21,3.2]
[1735238947505,2.6445,189.25,189.21,5.845]
[1735238947707,6.25073182,189.28,189.21,12.09573182]
[1735238949503,2.6445,189.25,189.21,12.09573182]
[1735238950607,6.25073182,189.28,189.22,2.6449]
[1735238951007,3.0972,189.3,189.22,2.6449]
[1735238951201,6.25073182,189.29,189.22,2.6449]
[1735238952510,2.6449,189.22,189.17,6.25073182]
[1735238952706,2.6449,189.22,189.18,3.2]
[1735238953006,6.25073182,189.25,189.18,3.2]
[1735238953208,6.25073182,189.27,189.19,6.25073182]
[1735238953801,2.6446,189.24,189.19,8.89603182]
[1735238955110,6.25073182,189.27,189.19,8.89603182]
[1735238955315,6.25073182,189.27,189.19,6.25073182]
[1735238955608,6.25073182,189.27,189.21,6.25073182]
[1735238956308,6.25073182,189.27,189.2,2.6451]
[1735238956703,2.6445,189.25,189.2,2.6451]
[1735238957911,6.25073182,189.27,189.18,3.2]
[1735238958210,6.25073182,189.27,189.2,6.25073182]
[1735238958400,2.6445,189.25,189.2,8.89583182]
[1735238959212,2.6445,189.25,189.2,6.25073182]
[1735238959408,6.25073182,189.27,189.21,2.645]
[1735238959611,2.6446,189.25,189.21,2.645]
[1735238960307,2.6446,189.24,189.2,6.25073182]
[1735238960512,2.6446,189.24,189.2,8.89583182]
[1735238961502,2.6446,189.24,189.21,2.645]
[1735238962412,2.6448,189.23,189.2,8.89593182]
[1735238963315,2.6446,189.24,189.21,2.645]
[1735238964716,3.0972,189.3,189.23,2.6447]
[1735238964915,7.81453182,189.3,189.24,3.2]
[1735238965412,2.644,189.29,189.24,3.2]
[1735238965605,7.81453182,189.3,189.24,3.2]
[1735238966007,2.6442,189.28,189.24,3.2]
[1735238966213,6.25073182,189.3,189.24,3.2]
[1735238967416,2.6442,189.27,189.24,3.2]
[1735238968709,6.25073182,189.28,189.24,3.2]
[1735238969418,2.6445,189.25,189.24,3.2]
[1735238972323,2.645,189.22,189.15,56.637]
[1735238972522,6.25073182,189.24,189.17,6.25073182]
[1735238972719,6.25073182,189.24,189.16,3.2]
[1735238972921,6.25073182,189.22,189.17,3.2]
[1735238973619,2.6454,189.19,189.17,3.2]
[1735238973923,2.6454,189.19,189.18,3.2]
[1735238974119,6.25073182,189.22,189.15,61.25073182]
[1735238974426,2.6457,189.17,189.16,3.2]
[1735238974623,6.25073182,189.2,189.16,3.2]
[1735238974830,2.6455,189.18,189.16,3.2]
[1735238976129,2.6456,189.17,189.16,3.2]
[1735238976636,2.6456,189.17,189.13,8.89683182]
[1735238976835,2.6456,189.17,189.14,3.2]
[1735238977034,2.6458,189.16,189.14,3.2]
[1735238977235,6.25073182,189.16,189.04,29.21655261]
[1735238977437,6.25073182,189.16,189.09,3.2]
[1735238977637,3.1805,189.19,189.1,6.25073182]
[1735238977830,6.25073182,189.18,189.09,9.45073182]
[1735238978436,6.25073182,189.18,189.09,12.09743182]
[1735238978632,6.25073182,189.18,189.11,6.25073182]
[1735238978831,2.6459,189.15,189.11,8.89713182]
[1735238980141,2.6459,189.15,189.11,6.25073182]
[1735238980536,2.6458,189.16,189.11,6.25073182]
[1735238981241,2.6458,189.16,189.13,6.25073182]
[1735238981435,6.25073182,189.18,189.14,3.2]
[1735238981941,2.6459,189.15,189.14,3.2]
[1735238985438,6.25073182,189.15,189.05,2.6472]
[1735238985743,6.25073182,189.13,189.06,3.2]
[1735238985941,6.25073182,189.11,189.06,3.2]
[1735238986243,6.25073182,189.09,189.06,3.2]
[1735238986641,2.647,189.07,189.06,3.2]
[1735238987038,6.25073182,189.09,189.01,1.6012]
[1735238987244,2.6475,189.03,189.02,3.2]
[1735238987437,6.25073182,189.07,189.0,6.25073182]
[1735238987641,6.25073182,189.07,189.02,3.2]
[1735238988340,6.25073182,189.09,189.02,9.45073182]
[1735238988541,2.6472,189.06,189.02,9.45073182]
[1735238988746,6.25073182,189.09,189.02,9.45073182]
[1735238989035,2.6475,189.03,189.02,3.2]
[1735238989241,6.25073182,189.07,189.02,3.2]
[1735238990038,2.6475,189.03,189.02,3.2]
[1735238999350,3.2923,189.11,189.02,3.2]
[1735238999556,6.25073182,189.09,189.03,6.25073182]
[1735238999944,2.6471,189.06,189.02,5.8476]
[1735239002253,2.647,189.07,189.03,6.25073182]
[1735239002851,7.91673182,189.11,189.03,6.25073182]
[1735239003053,2.6471,189.06,189.03,6.25073182]
[1735239005561,6.25073182,189.07,189.02,3.2]
[1735239006150,2.6475,189.03,189.02,3.2]
[1735239008164,6.25073182,189.03,188.97,1.78145562]
[1735239008363,6.25073182,189.03,188.91,117.00434343]
[1735239008364,6.25073182,189.01,188.91,117.00434343]
[1735239008566,2.6489,188.94,188.89,7.5649]
[1735239008767,6.25073182,188.95,188.89,3.2836]
[1735239009062,6.25073182,188.95,188.9,3.2]
[1735239009264,2.6489,188.94,188.9,3.2]
[1735239009457,6.25073182,188.95,188.9,3.2]
[1735239010259,2.6489,188.94,188.9,3.2]
[1735239010460,6.25073182,188.95,188.9,3.2]
[1735239011463,2.6492,188.91,188.9,3.2]
[1735239012360,2.6492,188.91,188.86,6.25073182]
[1735239012557,2.6492,188.91,188.9,3.2]
[1735239013660,6.25073182,188.95,188.9,3.2]
[1735239013962,6.25073182,188.96,188.9,3.2]
[1735239014163,2.6483,188.96,188.9,9.45073182]
[1735239014465,6.25073182,188.98,188.91,2.6489]
[1735239014667,2.6481,188.97,188.92,6.25073182]
[1735239015569,2.6481,188.97,188.92,8.89953182]
[1735239017263,1.5344,189.06,188.94,8.89923182]
[1735239017468,6.25073182,189.04,188.96,6.25073182]
[1735239017667,6.25073182,189.04,188.98,6.25073182]
[1735239017868,6.25073182,189.04,188.98,8.89863182]
[1735239019162,2.6474,189.02,188.98,6.25073182]
[1735239020258,2.6474,189.02,188.97,2.6481]
[1735239020964,2.6473,189.04,188.98,2.648]
[1735239021468,11.41122268,189.07,188.98,2.648]
[1735239022066,2.6471,189.05,189.0,2.6477]
[1735239022265,2.6471,189.05,189.01,3.2]
[1735239023263,1.6273,189.07,189.01,3.2]
[1735239023568,2.6474,189.02,189.01,3.2]
[1735239025271,2.647,189.06,189.01,3.2]
[1735239025471,11.41122268,189.07,189.01,3.2]
[1735239026071,2.6473,189.04,189.01,3.2]
[1735239026269,11.41122268,189.07,189.01,3.2]
[1735239026475,2.6474,189.02,189.01,3.2]
[1735239026865,11.41122268,189.07,189.01,3.2]
[1735239027073,9.78392268,189.1,189.02,2.6474]
[1735239027369,9.78392268,189.1,189.01,3.2]
[1735239028177,2.647,189.06,189.01,3.2]
[1735239028774,2.647,189.06,189.01,5.8475]
[1735239029569,9.78392268,189.1,189.01,5.8475]
[1735239029775,2.647,189.05,189.01,5.8475]
[1735239032374,2.6468,189.07,189.02,2.6473]
[1735239032565,9.78392268,189.1,189.02,2.6473]
[1735239032765,2.6468,189.07,189.02,2.6473]
[1735239032973,9.78392268,189.13,189.01,3.2]
[1735239033474,2.6465,189.09,189.04,2.647]
[1735239033977,2.6463,189.1,189.06,2.6468]
[1735239034273,1.6235,189.14,189.07,3.2]
[1735239034576,2.6459,189.13,189.08,2.6465]
[1735239034775,1.6235,189.14,189.08,2.6465]
[1735239035370,2.646,189.12,189.07,5.8467]
[1735239035976,1.6235,189.14,189.07,5.8467]
[1735239036170,2.6464,189.1,189.07,3.2]
[1735239037979,2.6463,189.11,189.07,3.2]
[1735239038776,9.78392268,189.19,189.07,3.2]
[1735239039475,9.78392268,189.19,189.07,4.813]
[1735239040476,2.6461,189.12,189.08,2.6466]
[1735239041684,2.6461,189.12,189.07,7.4597]
[1735239042983,6.25570343,189.12,188.98,3.2222]
[1735239043185,6.25570343,189.08,189.0,6.25570343]
[1735239043385,6.25570343,189.08,189.01,3.2]
[1735239043587,2.6473,189.04,189.01,3.2]
[1735239043981,6.25570343,189.06,189.02,3.2]
[1735239044187,2.6474,189.03,189.0,6.25570343]
[1735239044387,2.6474,189.03,189.01,3.2]
[1735239044583,6.25570343,189.06,189.0,3.2]
[1735239044890,6.25570343,189.02,189.0,3.2]
[1735239045391,2.6476,189.01,189.0,3.2]
[1735239047695,2.6473,189.03,189.0,3.2]
[1735239049289,1.6446,189.05,189.0,3.2]
[1735239049499,9.78410977,189.08,189.0,3.2]
[1735239049693,11.34460977,189.11,189.0,3.2]
[1735239050196,2.6471,189.05,189.0,5.8477]
[1735239051291,11.34460977,189.11,189.0,3.2]
[1735239051994,1.5605,189.11,189.0,12.98410977]
[1735239052299,1.5605,189.11,189.01,1.5885]
[1735239052496,2.6464,189.1,189.04,2.6471]
[1735239052697,2.6464,189.1,189.05,3.2]
[1735239053093,2.6464,189.1,189.05,5.8469]
[1735239053799,11.40380977,189.17,189.05,3.2]
[1735239054101,2.6462,189.11,189.06,2.6468]
[1735239055301,2.6462,189.11,189.05,3.2]
[1735239055504,2.6462,189.11,189.07,2.6467]
[1735239059594,9.78410977,189.14,189.01,1.5885]